[Event "Titled Tuesday Blitz April 4 Early 2023"]
[White "Prohaszka, Peter"]
[Black "Deuer, Marius"]
[WhiteFideId "726265"]
[BlackFideId "16236432"]
[WhiteElo "2626"]
[BlackElo "2163"]
[Result "1-0"]
[Round "06"]
[TimeControl "180+2"]
[Date "2023.04.04"]
[WhiteClock "0:00:15"]
[BlackClock "0:00:08"]

1. d4 {[%clk 0:02:52]}  Nf6 {[%clk 0:02:49]} 2. c3 {[%clk 0:02:37]}  c5 {[%clk 0:02:50]} 3. dxc5 {[%clk 0:02:36]}  e6 {[%clk 0:02:49]} 4. Be3 {[%clk 0:02:35]}  Nc6 {[%clk 0:02:42]} 5. Nf3 {[%clk 0:02:25]}  Qc7 {[%clk 0:02:36]} 6. Na3 {[%clk 0:02:12]}  a6 {[%clk 0:02:09]} 7. Nc4 {[%clk 0:02:07]}  Ng4 {[%clk 0:02:00]} 8. Qd2 {[%clk 0:01:41]}  Nxe3 {[%clk 0:01:35]} 9. Qxe3 {[%clk 0:01:42]}  Na5 {[%clk 0:01:35]} 10. Nb6 {[%clk 0:01:28]}  Rb8 {[%clk 0:01:12]} 11. b4 {[%clk 0:01:25]}  Nc6 {[%clk 0:01:07]} 12. Nd5 {[%clk 0:00:42]}  Qd8 {[%clk 0:00:55]} 13. Rd1 {[%clk 0:00:39]}  Be7 {[%clk 0:00:20]} 14. Nxe7 {[%clk 0:00:36]}  Qxe7 {[%clk 0:00:21]} 15. Ne5 {[%clk 0:00:28]}  O-O {[%clk 0:00:16]} 16. Nc4 {[%clk 0:00:26]}  a5 {[%clk 0:00:12]} 17. a3 {[%clk 0:00:25]}  b5 {[%clk 0:00:09]} 18. Nd6 {[%clk 0:00:21]}  axb4 {[%clk 0:00:09]} 19. axb4 {[%clk 0:00:22]}  Qd8 {[%clk 0:00:06]} 20. g3 {[%clk 0:00:21]}  Bb7 {[%clk 0:00:06]} 21. Bg2 {[%clk 0:00:21]}  Qc7 {[%clk 0:00:07]} 22. O-O {[%clk 0:00:20]}  Ne7 {[%clk 0:00:06]} 23. Nxb7 {[%clk 0:00:18]}  Rxb7 {[%clk 0:00:07]} 24. Bxb7 {[%clk 0:00:18]}  Qxb7 {[%clk 0:00:08]} 25. Qf3 {[%clk 0:00:19]}  Nc6 {[%clk 0:00:06]} 26. Rd6 {[%clk 0:00:18]}  Rd8 {[%clk 0:00:06]} 27. Rfd1 {[%clk 0:00:18]}  Kf8 {[%clk 0:00:07]} 28. Rxc6 {[%clk 0:00:16]}  dxc6 {[%clk 0:00:07]} 29. Rxd8+ {[%clk 0:00:16]}  Ke7 {[%clk 0:00:08]} 30. Rd6 {[%clk 0:00:15]} 1-0


[Site "https://www.chess.com"]

[Event "Titled Tuesday Blitz April 4 Early 2023"]
[White "Toropov, Pavel"]
[Black "Silva Lucena, Cristian"]
[WhiteFideId "24129178"]
[BlackFideId "2232588"]
[WhiteElo "2182"]
[BlackElo "2223"]
[Result "0-1"]
[Round "06"]
[TimeControl "180+2"]
[Date "2023.04.04"]
[WhiteClock "0:00:05"]
[BlackClock "0:01:56"]

1. e4 {[%clk 0:03:00]}  e6 {[%clk 0:02:50]} 2. d4 {[%clk 0:03:00]}  d5 {[%clk 0:02:50]} 3. exd5 {[%clk 0:03:01]}  exd5 {[%clk 0:02:50]} 4. Bd3 {[%clk 0:03:02]}  Bd6 {[%clk 0:02:50]} 5. Nf3 {[%clk 0:03:02]}  Ne7 {[%clk 0:02:50]} 6. O-O {[%clk 0:02:59]}  Nbc6 {[%clk 0:02:51]} 7. c4 {[%clk 0:02:58]}  dxc4 {[%clk 0:02:50]} 8. Bxc4 {[%clk 0:02:59]}  O-O {[%clk 0:02:49]} 9. Nc3 {[%clk 0:02:51]}  Bg4 {[%clk 0:02:50]} 10. h3 {[%clk 0:02:48]}  Bh5 {[%clk 0:02:48]} 11. Be3 {[%clk 0:02:37]}  Nf5 {[%clk 0:02:46]} 12. Be2 {[%clk 0:02:00]}  Re8 {[%clk 0:02:38]} 13. Qd2 {[%clk 0:01:59]}  Nxe3 {[%clk 0:02:06]} 14. fxe3 {[%clk 0:01:58]}  Qe7 {[%clk 0:02:06]} 15. e4 {[%clk 0:01:41]}  Bxf3 {[%clk 0:02:06]} 16. Bxf3 {[%clk 0:01:37]}  Nxd4 {[%clk 0:02:07]} 17. Bh5 {[%clk 0:01:14]}  g6 {[%clk 0:02:04]} 18. Nd5 {[%clk 0:01:11]}  Qe5 {[%clk 0:02:05]} 19. Nf6+ {[%clk 0:00:16]}  Kg7 {[%clk 0:02:03]} 20. Nxe8+ {[%clk 0:00:14]}  Rxe8 {[%clk 0:02:04]} 21. Bf3 {[%clk 0:00:10]}  Qh2+ {[%clk 0:01:59]} 22. Kf2 {[%clk 0:00:10]}  Bg3+ {[%clk 0:01:59]} 23. Ke3 {[%clk 0:00:10]}  Bf4+ {[%clk 0:02:00]} 24. Kd3 {[%clk 0:00:07]}  Bxd2 {[%clk 0:01:59]} 25. Kxd2 {[%clk 0:00:08]}  Nxf3+ {[%clk 0:01:58]} 26. Rxf3 {[%clk 0:00:04]}  Qxg2+ {[%clk 0:01:59]} 27. Ke3 {[%clk 0:00:05]}  Rxe4+ {[%clk 0:01:56]} 0-1


[Site "https://www.chess.com"]

[Event "Titled Tuesday Blitz April 4 Early 2023"]
[White "Rizzo, Tobias"]
[Black "Florescu, Codrut-Constantin"]
[WhiteFideId "30942691"]
[BlackFideId "1202200"]
[WhiteElo "2411"]
[BlackElo "2191"]
[Result "1-0"]
[Round "06"]
[TimeControl "180+2"]
[Date "2023.04.04"]
[WhiteClock "0:01:07"]
[BlackClock "0:00:57"]

1. d4 {[%clk 0:03:00]}  Nf6 {[%clk 0:02:59]} 2. Bg5 {[%clk 0:03:00]}  e6 {[%clk 0:02:59]} 3. e4 {[%clk 0:03:00]}  h6 {[%clk 0:02:59]} 4. Bxf6 {[%clk 0:03:00]}  Qxf6 {[%clk 0:02:59]} 5. c3 {[%clk 0:03:01]}  d5 {[%clk 0:02:58]} 6. Nd2 {[%clk 0:03:00]}  Nc6 {[%clk 0:02:55]} 7. Bd3 {[%clk 0:02:56]}  Bd7 {[%clk 0:02:53]} 8. Qf3 {[%clk 0:02:55]}  Qxf3 {[%clk 0:02:49]} 9. Ngxf3 {[%clk 0:02:56]}  dxe4 {[%clk 0:02:49]} 10. Nxe4 {[%clk 0:02:56]}  O-O-O {[%clk 0:02:48]} 11. O-O-O {[%clk 0:02:56]}  b6 {[%clk 0:02:43]} 12. Ba6+ {[%clk 0:02:47]}  Kb8 {[%clk 0:02:43]} 13. d5 {[%clk 0:02:45]}  exd5 {[%clk 0:02:35]} 14. Rxd5 {[%clk 0:02:46]}  Be6 {[%clk 0:02:32]} 15. Rxd8+ {[%clk 0:02:45]}  Nxd8 {[%clk 0:02:32]} 16. Rd1 {[%clk 0:02:42]}  Be7 {[%clk 0:02:32]} 17. Ne5 {[%clk 0:02:39]}  c6 {[%clk 0:01:41]} 18. Bc4 {[%clk 0:02:12]}  Bxc4 {[%clk 0:01:37]} 19. Nxc4 {[%clk 0:02:12]}  f5 {[%clk 0:01:34]} 20. Rd7 {[%clk 0:02:09]}  Re8 {[%clk 0:01:25]} 21. Ncd6 {[%clk 0:01:38]}  Bxd6 {[%clk 0:01:23]} 22. Nxd6 {[%clk 0:01:38]}  Rg8 {[%clk 0:01:12]} 23. Nxf5 {[%clk 0:01:31]}  Ne6 {[%clk 0:01:11]} 24. Ne7 {[%clk 0:01:28]}  Rf8 {[%clk 0:01:04]} 25. Nxc6+ {[%clk 0:01:27]}  Kc8 {[%clk 0:01:04]} 26. Re7 {[%clk 0:01:21]}  Nc5 {[%clk 0:01:03]} 27. Nxa7+ {[%clk 0:01:21]}  Kd8 {[%clk 0:01:03]} 28. Nc6+ {[%clk 0:01:22]}  Kc8 {[%clk 0:01:03]} 29. f3 {[%clk 0:01:10]}  Nd3+ {[%clk 0:00:59]} 30. Kc2 {[%clk 0:01:09]}  Nf4 {[%clk 0:01:00]} 31. Na7+ {[%clk 0:01:05]}  Kd8 {[%clk 0:01:00]} 32. Nc6+ {[%clk 0:01:06]}  Kc8 {[%clk 0:01:00]} 33. Rxg7 {[%clk 0:01:07]}  Rf5 {[%clk 0:00:57]} 34. Ne7+ {[%clk 0:01:07]} 1-0


[Site "https://www.chess.com"]

[Event "Titled Tuesday Blitz April 4 Early 2023"]
[White "Manukian, Artak"]
[Black "Fiorito, Francisco"]
[WhiteFideId "13301373"]
[BlackFideId "180165"]
[WhiteElo "2130"]
[BlackElo "2341"]
[Result "0-1"]
[Round "06"]
[TimeControl "180+2"]
[Date "2023.04.04"]
[WhiteClock "0:00:30"]
[BlackClock "0:00:22"]

1. e4 {[%clk 0:03:00]}  e5 {[%clk 0:02:59]} 2. Nf3 {[%clk 0:03:00]}  Nf6 {[%clk 0:02:58]} 3. Nxe5 {[%clk 0:03:00]}  d6 {[%clk 0:02:57]} 4. Nf3 {[%clk 0:02:59]}  Nxe4 {[%clk 0:02:58]} 5. Nc3 {[%clk 0:03:00]}  Nxc3 {[%clk 0:02:58]} 6. dxc3 {[%clk 0:03:01]}  Be7 {[%clk 0:02:58]} 7. Be3 {[%clk 0:03:00]}  O-O {[%clk 0:02:59]} 8. Qd2 {[%clk 0:02:59]}  Nd7 {[%clk 0:03:00]} 9. O-O-O {[%clk 0:02:58]}  Nf6 {[%clk 0:03:00]} 10. Bd3 {[%clk 0:02:57]}  Re8 {[%clk 0:03:00]} 11. h3 {[%clk 0:02:53]}  c5 {[%clk 0:02:59]} 12. g4 {[%clk 0:02:51]}  Be6 {[%clk 0:03:00]} 13. Kb1 {[%clk 0:02:48]}  Qa5 {[%clk 0:02:38]} 14. c4 {[%clk 0:02:46]}  Qa4 {[%clk 0:02:29]} 15. b3 {[%clk 0:02:42]}  Qc6 {[%clk 0:02:30]} 16. Ng5 {[%clk 0:02:40]}  Bd7 {[%clk 0:02:24]} 17. f3 {[%clk 0:02:32]}  h6 {[%clk 0:02:18]} 18. Ne4 {[%clk 0:02:32]}  d5 {[%clk 0:02:04]} 19. Nxf6+ {[%clk 0:02:28]}  Qxf6 {[%clk 0:02:00]} 20. cxd5 {[%clk 0:02:24]}  c4 {[%clk 0:01:56]} 21. Bxc4 {[%clk 0:02:20]}  Ba3 {[%clk 0:01:56]} 22. Bd4 {[%clk 0:02:18]}  Qxf3 {[%clk 0:01:55]} 23. Rdf1 {[%clk 0:02:10]}  Qe4 {[%clk 0:01:51]} 24. Re1 {[%clk 0:02:00]}  Qg6 {[%clk 0:01:48]} 25. Bb2 {[%clk 0:01:52]}  Bd6 {[%clk 0:01:43]} 26. Qd4 {[%clk 0:01:45]}  f6 {[%clk 0:01:39]} 27. Bd3 {[%clk 0:01:38]}  Qg5 {[%clk 0:01:36]} 28. h4 {[%clk 0:01:37]}  Qxg4 {[%clk 0:01:34]} 29. Qxg4 {[%clk 0:01:30]}  Bxg4 {[%clk 0:01:35]} 30. c4 {[%clk 0:01:21]}  Kf7 {[%clk 0:01:21]} 31. h5 {[%clk 0:01:21]}  Rxe1+ {[%clk 0:01:18]} 32. Rxe1 {[%clk 0:01:20]}  Bxh5 {[%clk 0:01:19]} 33. Bf5 {[%clk 0:01:20]}  Rd8 {[%clk 0:01:15]} 34. Bd4 {[%clk 0:01:17]}  b6 {[%clk 0:01:15]} 35. Kc2 {[%clk 0:01:12]}  Bg6 {[%clk 0:01:13]} 36. Bxg6+ {[%clk 0:01:10]}  Kxg6 {[%clk 0:01:14]} 37. Kc3 {[%clk 0:01:09]}  h5 {[%clk 0:01:06]} 38. b4 {[%clk 0:01:08]}  h4 {[%clk 0:01:06]} 39. c5 {[%clk 0:01:08]}  bxc5 {[%clk 0:01:06]} 40. bxc5 {[%clk 0:01:08]}  Bg3 {[%clk 0:01:07]} 41. Rh1 {[%clk 0:01:03]}  Rxd5 {[%clk 0:01:07]} 42. Kc4 {[%clk 0:01:03]}  Rd8 {[%clk 0:01:06]} 43. c6 {[%clk 0:01:03]}  Rc8 {[%clk 0:01:06]} 44. Kd5 {[%clk 0:01:04]}  Kf5 {[%clk 0:01:05]} 45. Bxa7 {[%clk 0:01:00]}  g5 {[%clk 0:01:03]} 46. a4 {[%clk 0:01:00]}  Ra8 {[%clk 0:01:00]} 47. Bc5 {[%clk 0:00:54]}  Rxa4 {[%clk 0:00:58]} 48. Rf1+ {[%clk 0:00:53]}  Kg6 {[%clk 0:00:52]} 49. Rg1 {[%clk 0:00:51]}  f5 {[%clk 0:00:47]} 50. Bd6 {[%clk 0:00:50]}  Ra5+ {[%clk 0:00:38]} 51. Ke6 {[%clk 0:00:50]}  Bxd6 {[%clk 0:00:38]} 52. Kxd6 {[%clk 0:00:50]}  Ra6 {[%clk 0:00:34]} 53. Kd7 {[%clk 0:00:48]}  g4 {[%clk 0:00:34]} 54. c7 {[%clk 0:00:48]}  Ra7 {[%clk 0:00:35]} 55. Kd6 {[%clk 0:00:47]}  Ra8 {[%clk 0:00:33]} 56. Rb1 {[%clk 0:00:44]}  Rc8 {[%clk 0:00:30]} 57. Rb8 {[%clk 0:00:43]}  Rxc7 {[%clk 0:00:31]} 58. Kxc7 {[%clk 0:00:44]}  h3 {[%clk 0:00:27]} 59. Kd6 {[%clk 0:00:44]}  h2 {[%clk 0:00:24]} 60. Rh8 {[%clk 0:00:44]}  g3 {[%clk 0:00:24]} 61. Ke5 {[%clk 0:00:40]}  g2 {[%clk 0:00:24]} 62. Rg8+ {[%clk 0:00:29]}  Kf7 {[%clk 0:00:23]} 63. Rxg2 {[%clk 0:00:29]}  h1=Q {[%clk 0:00:24]} 64. Rg5 {[%clk 0:00:30]}  Qe4+ {[%clk 0:00:22]} 0-1


[Site "https://www.chess.com"]

[Event "Titled Tuesday Blitz April 4 Early 2023"]
[White "Dixit, Nikhil"]
[Black "ArtemDyachuk"]
[WhiteFideId "5059534"]
[WhiteElo "2207"]
[BlackElo "2407"]
[Result "0-1"]
[Round "06"]
[TimeControl "180+2"]
[Date "2023.04.04"]
[WhiteClock "0:00:25"]
[BlackClock "0:00:59"]

1. e4 {[%clk 0:03:00]}  c5 {[%clk 0:02:52]} 2. Nf3 {[%clk 0:03:00]}  d6 {[%clk 0:02:51]} 3. Bb5+ {[%clk 0:02:54]}  Nd7 {[%clk 0:02:50]} 4. O-O {[%clk 0:02:52]}  g6 {[%clk 0:02:43]} 5. d4 {[%clk 0:02:40]}  cxd4 {[%clk 0:02:43]} 6. Qxd4 {[%clk 0:02:41]}  Nf6 {[%clk 0:02:43]} 7. e5 {[%clk 0:02:38]}  dxe5 {[%clk 0:02:42]} 8. Nxe5 {[%clk 0:02:37]}  Bg7 {[%clk 0:02:42]} 9. Nxd7 {[%clk 0:02:31]}  Bxd7 {[%clk 0:02:39]} 10. Bxd7+ {[%clk 0:02:31]}  Qxd7 {[%clk 0:02:39]} 11. Qxd7+ {[%clk 0:02:31]}  Kxd7 {[%clk 0:02:39]} 12. c3 {[%clk 0:02:26]}  e5 {[%clk 0:02:38]} 13. Na3 {[%clk 0:02:20]}  Ke6 {[%clk 0:02:32]} 14. Nc2 {[%clk 0:02:12]}  Rhe8 {[%clk 0:02:25]} 15. Be3 {[%clk 0:02:01]}  Nd5 {[%clk 0:02:21]} 16. Rad1 {[%clk 0:02:00]}  Rad8 {[%clk 0:02:10]} 17. Bxa7 {[%clk 0:01:52]}  Ra8 {[%clk 0:02:03]} 18. Bc5 {[%clk 0:01:48]}  Rxa2 {[%clk 0:02:01]} 19. Rxd5 {[%clk 0:01:47]}  Kxd5 {[%clk 0:01:59]} 20. Ba3 {[%clk 0:01:33]}  Kc4 {[%clk 0:01:54]} 21. Rd1 {[%clk 0:01:17]}  Bf8 {[%clk 0:01:48]} 22. g3 {[%clk 0:00:59]}  Bxa3 {[%clk 0:01:41]} 23. Nxa3+ {[%clk 0:00:59]}  Kb3 {[%clk 0:01:39]} 24. Rd7 {[%clk 0:00:55]}  Kxb2 {[%clk 0:01:39]} 25. Nc4+ {[%clk 0:00:53]}  Kb3 {[%clk 0:01:37]} 26. Nd6 {[%clk 0:00:53]}  Rea8 {[%clk 0:01:29]} 27. Rxb7+ {[%clk 0:00:52]}  Kxc3 {[%clk 0:01:23]} 28. Rxf7 {[%clk 0:00:53]}  Kd3 {[%clk 0:01:15]} 29. Rxh7 {[%clk 0:00:46]}  Rf8 {[%clk 0:01:13]} 30. Nf7 {[%clk 0:00:39]}  Ke2 {[%clk 0:01:05]} 31. Nxe5 {[%clk 0:00:32]}  Rxf2 {[%clk 0:01:00]} 32. Ng4 {[%clk 0:00:25]}  Ra1# {[%clk 0:00:59]} 0-1


[Site "https://www.chess.com"]

[Event "Titled Tuesday Blitz April 4 Early 2023"]
[White "Ruperez Benito, Antonio"]
[Black "Staudenhocker43"]
[WhiteFideId "22245049"]
[WhiteElo "2273"]
[BlackElo "2541"]
[Result "1/2-1/2"]
[Round "06"]
[TimeControl "180+2"]
[Date "2023.04.04"]
[WhiteClock "0:00:54"]
[BlackClock "0:00:01"]

1. e4 {[%clk 0:03:00]}  e5 {[%clk 0:02:59]} 2. Nf3 {[%clk 0:03:00]}  Nf6 {[%clk 0:03:00]} 3. Nxe5 {[%clk 0:03:00]}  d6 {[%clk 0:03:00]} 4. Nf3 {[%clk 0:03:00]}  Nxe4 {[%clk 0:03:01]} 5. Nc3 {[%clk 0:03:00]}  Nxc3 {[%clk 0:03:01]} 6. dxc3 {[%clk 0:03:01]}  Be7 {[%clk 0:03:01]} 7. Bd3 {[%clk 0:03:00]}  Nd7 {[%clk 0:03:00]} 8. Bf4 {[%clk 0:03:00]}  Nc5 {[%clk 0:02:59]} 9. Qd2 {[%clk 0:02:57]}  O-O {[%clk 0:02:59]} 10. O-O-O {[%clk 0:02:56]}  Be6 {[%clk 0:02:57]} 11. Kb1 {[%clk 0:02:54]}  Nxd3 {[%clk 0:02:55]} 12. Qxd3 {[%clk 0:02:53]}  Qd7 {[%clk 0:02:55]} 13. h4 {[%clk 0:02:52]}  Qa4 {[%clk 0:02:43]} 14. Nd4 {[%clk 0:02:46]}  Qxa2+ {[%clk 0:02:38]} 15. Kc1 {[%clk 0:02:47]}  c5 {[%clk 0:02:25]} 16. Nxe6 {[%clk 0:02:42]}  fxe6 {[%clk 0:02:23]} 17. Be3 {[%clk 0:02:29]}  d5 {[%clk 0:02:13]} 18. Qb5 {[%clk 0:02:13]}  Qa1+ {[%clk 0:01:22]} 19. Kd2 {[%clk 0:02:11]}  Qa6 {[%clk 0:01:23]} 20. Qxa6 {[%clk 0:02:10]}  bxa6 {[%clk 0:01:24]} 21. Ra1 {[%clk 0:02:10]}  e5 {[%clk 0:01:21]} 22. f3 {[%clk 0:02:05]}  d4 {[%clk 0:01:20]} 23. Bf2 {[%clk 0:02:04]}  Rf6 {[%clk 0:01:19]} 24. Rhe1 {[%clk 0:02:02]}  Re6 {[%clk 0:00:55]} 25. cxd4 {[%clk 0:01:59]}  cxd4 {[%clk 0:00:55]} 26. Kd3 {[%clk 0:01:50]}  Kf7 {[%clk 0:00:52]} 27. Re4 {[%clk 0:01:48]}  Rb8 {[%clk 0:00:49]} 28. b3 {[%clk 0:01:46]}  Rc8 {[%clk 0:00:49]} 29. Be1 {[%clk 0:01:42]}  Bf6 {[%clk 0:00:44]} 30. Bd2 {[%clk 0:01:38]}  Rec6 {[%clk 0:00:43]} 31. Ra2 {[%clk 0:01:35]}  h5 {[%clk 0:00:27]} 32. g4 {[%clk 0:01:32]}  hxg4 {[%clk 0:00:26]} 33. fxg4 {[%clk 0:01:33]}  Bxh4 {[%clk 0:00:23]} 34. Rxe5 {[%clk 0:01:32]}  Bf6 {[%clk 0:00:23]} 35. Rea5 {[%clk 0:01:27]}  R8c7 {[%clk 0:00:07]} 36. Rxa6 {[%clk 0:01:26]}  Rxa6 {[%clk 0:00:07]} 37. Rxa6 {[%clk 0:01:27]}  Rd7 {[%clk 0:00:08]} 38. g5 {[%clk 0:01:26]}  Be5 {[%clk 0:00:07]} 39. g6+ {[%clk 0:01:26]}  Ke8 {[%clk 0:00:07]} 40. Re6+ {[%clk 0:01:24]}  Re7 {[%clk 0:00:07]} 41. Rxe7+ {[%clk 0:01:22]}  Kxe7 {[%clk 0:00:07]} 42. Bg5+ {[%clk 0:01:17]}  Ke6 {[%clk 0:00:08]} 43. Ke4 {[%clk 0:01:17]}  a6 {[%clk 0:00:07]} 44. Bh4 {[%clk 0:01:16]}  Kd6 {[%clk 0:00:07]} 45. Bf2 {[%clk 0:01:15]}  Ke6 {[%clk 0:00:05]} 46. Bxd4 {[%clk 0:01:15]}  Bxd4 {[%clk 0:00:05]} 47. Kxd4 {[%clk 0:01:16]}  Kf5 {[%clk 0:00:05]} 48. c4 {[%clk 0:01:16]}  Kxg6 {[%clk 0:00:06]} 49. Kd5 {[%clk 0:00:58]}  Kf7 {[%clk 0:00:06]} 50. Kd6 {[%clk 0:00:58]}  Ke8 {[%clk 0:00:05]} 51. Kc7 {[%clk 0:00:50]}  g5 {[%clk 0:00:01]} 52. c5 {[%clk 0:00:50]}  g4 {[%clk 0:00:01]} 53. c6 {[%clk 0:00:50]}  g3 {[%clk 0:00:02]} 54. Kb7 {[%clk 0:00:50]}  g2 {[%clk 0:00:02]} 55. c7 {[%clk 0:00:51]}  g1=Q {[%clk 0:00:02]} 56. c8=Q+ {[%clk 0:00:52]}  Ke7 {[%clk 0:00:02]} 57. Qc7+ {[%clk 0:00:51]}  Ke8 {[%clk 0:00:02]} 58. Qc6+ {[%clk 0:00:52]}  Ke7 {[%clk 0:00:03]} 59. Qxa6 {[%clk 0:00:52]}  Qg2+ {[%clk 0:00:02]} 60. Kb8 {[%clk 0:00:52]}  Qg3+ {[%clk 0:00:01]} 61. Ka8 {[%clk 0:00:52]}  Qxb3 {[%clk 0:00:01]} 62. Qb7+ {[%clk 0:00:53]}  Qxb7+ {[%clk 0:00:01]} 63. Kxb7 {[%clk 0:00:54]} 1/2-1/2


[Site "https://www.chess.com"]

[Event "Titled Tuesday Blitz April 4 Early 2023"]
[White "Kukreja, Sankalp"]
[Black "Rodchenkov, Sergey D."]
[WhiteFideId "45027676"]
[BlackFideId "4168712"]
[WhiteElo "2126"]
[BlackElo "2277"]
[Result "1-0"]
[Round "06"]
[TimeControl "180+2"]
[Date "2023.04.04"]
[WhiteClock "0:00:06"]
[BlackClock "0:00:01"]

1. e4 {[%clk 0:02:22]}  c5 {[%clk 0:02:51]} 2. Nf3 {[%clk 0:02:14]}  d6 {[%clk 0:02:51]} 3. d4 {[%clk 0:02:11]}  cxd4 {[%clk 0:02:52]} 4. Nxd4 {[%clk 0:02:12]}  Nf6 {[%clk 0:02:53]} 5. Nc3 {[%clk 0:02:11]}  a6 {[%clk 0:02:53]} 6. Bc4 {[%clk 0:02:08]}  e6 {[%clk 0:02:52]} 7. Bb3 {[%clk 0:02:06]}  Nbd7 {[%clk 0:02:52]} 8. f4 {[%clk 0:02:02]}  Nc5 {[%clk 0:02:52]} 9. e5 {[%clk 0:02:02]}  Nfd7 {[%clk 0:02:45]} 10. exd6 {[%clk 0:01:58]}  Nf6 {[%clk 0:02:41]} 11. Be3 {[%clk 0:01:56]}  Bxd6 {[%clk 0:02:40]} 12. Qf3 {[%clk 0:01:57]}  O-O {[%clk 0:02:40]} 13. O-O-O {[%clk 0:01:54]}  Qc7 {[%clk 0:02:39]} 14. Rhg1 {[%clk 0:01:52]}  Rb8 {[%clk 0:02:09]} 15. g4 {[%clk 0:01:50]}  b5 {[%clk 0:02:05]} 16. g5 {[%clk 0:01:41]}  Bb7 {[%clk 0:02:00]} 17. Qh3 {[%clk 0:01:37]}  Nfe4 {[%clk 0:01:59]} 18. Nxe4 {[%clk 0:01:34]}  Bxe4 {[%clk 0:01:54]} 19. Rd2 {[%clk 0:01:12]}  Rbc8 {[%clk 0:01:47]} 20. f5 {[%clk 0:00:54]}  Nxb3+ {[%clk 0:01:28]} 21. axb3 {[%clk 0:00:52]}  e5 {[%clk 0:01:28]} 22. g6 {[%clk 0:00:20]}  h6 {[%clk 0:00:58]} 23. Bxh6 {[%clk 0:00:11]}  fxg6 {[%clk 0:00:29]} 24. Bxg7 {[%clk 0:00:08]}  exd4 {[%clk 0:00:12]} 25. Bxd4 {[%clk 0:00:06]}  Bxf5 {[%clk 0:00:07]} 26. Qh8+ {[%clk 0:00:05]}  Kf7 {[%clk 0:00:07]} 27. Qg7+ {[%clk 0:00:06]}  Ke8 {[%clk 0:00:08]} 28. Re1+ {[%clk 0:00:06]}  Be7 {[%clk 0:00:04]} 29. Bf6 {[%clk 0:00:06]}  Qxc2+ {[%clk 0:00:02]} 30. Rxc2 {[%clk 0:00:06]}  Rxc2+ {[%clk 0:00:03]} 31. Kd1 {[%clk 0:00:06]}  Kd7 {[%clk 0:00:01]} 32. Qxe7+ {[%clk 0:00:06]}  Kc6 {[%clk 0:00:02]} 33. Qxf8 {[%clk 0:00:06]}  Rg2 {[%clk 0:00:01]} 34. Qe8+ {[%clk 0:00:06]} 1-0


[Site "https://www.chess.com"]

[Event "Titled Tuesday Blitz April 4 Early 2023"]
[White "Salman, Pavel"]
[Black "Krzywda, Andrzej"]
[WhiteFideId "24153753"]
[BlackFideId "1114565"]
[WhiteElo "2187"]
[BlackElo "2155"]
[Result "1-0"]
[Round "06"]
[TimeControl "180+2"]
[Date "2023.04.04"]
[WhiteClock "0:00:13"]
[BlackClock "0:00:01"]

1. Nf3 {[%clk 0:03:00]}  c5 {[%clk 0:02:58]} 2. g3 {[%clk 0:02:59]}  Nc6 {[%clk 0:02:57]} 3. Bg2 {[%clk 0:03:00]}  g6 {[%clk 0:02:56]} 4. d3 {[%clk 0:02:58]}  Bg7 {[%clk 0:02:56]} 5. e4 {[%clk 0:02:59]}  e5 {[%clk 0:02:55]} 6. c3 {[%clk 0:02:59]}  Nge7 {[%clk 0:02:55]} 7. h4 {[%clk 0:02:59]}  d5 {[%clk 0:02:43]} 8. exd5 {[%clk 0:02:58]}  Nxd5 {[%clk 0:02:43]} 9. h5 {[%clk 0:02:57]}  Bg4 {[%clk 0:02:37]} 10. h6 {[%clk 0:02:54]}  Bf6 {[%clk 0:02:36]} 11. Nbd2 {[%clk 0:02:52]}  Be7 {[%clk 0:02:35]} 12. Qa4 {[%clk 0:02:46]}  Qd7 {[%clk 0:02:32]} 13. O-O {[%clk 0:02:36]}  Be6 {[%clk 0:02:19]} 14. Re1 {[%clk 0:02:31]}  O-O {[%clk 0:02:12]} 15. Ne4 {[%clk 0:02:24]}  Nb6 {[%clk 0:02:06]} 16. Qc2 {[%clk 0:02:22]}  Rad8 {[%clk 0:02:06]} 17. Bf1 {[%clk 0:02:03]}  f6 {[%clk 0:02:04]} 18. Be3 {[%clk 0:02:01]}  Bd5 {[%clk 0:01:36]} 19. Nfd2 {[%clk 0:01:55]}  Qf5 {[%clk 0:01:23]} 20. Be2 {[%clk 0:01:35]}  Nd7 {[%clk 0:01:12]} 21. Qd1 {[%clk 0:01:18]}  g5 {[%clk 0:00:57]} 22. Bh5 {[%clk 0:01:00]}  b6 {[%clk 0:00:48]} 23. Qe2 {[%clk 0:00:55]}  Bf7 {[%clk 0:00:36]} 24. Bxf7+ {[%clk 0:00:52]}  Rxf7 {[%clk 0:00:36]} 25. Qh5 {[%clk 0:00:51]}  Qg6 {[%clk 0:00:34]} 26. Qxg6+ {[%clk 0:00:50]}  hxg6 {[%clk 0:00:35]} 27. Kg2 {[%clk 0:00:49]}  Kh7 {[%clk 0:00:35]} 28. Rh1 {[%clk 0:00:48]}  Nf8 {[%clk 0:00:32]} 29. f4 {[%clk 0:00:41]}  gxf4 {[%clk 0:00:27]} 30. gxf4 {[%clk 0:00:41]}  Rxd3 {[%clk 0:00:27]} 31. Rae1 {[%clk 0:00:40]}  exf4 {[%clk 0:00:20]} 32. Bxf4 {[%clk 0:00:41]}  Ne6 {[%clk 0:00:20]} 33. Bg3 {[%clk 0:00:33]}  Ne5 {[%clk 0:00:15]} 34. Bxe5 {[%clk 0:00:33]}  fxe5 {[%clk 0:00:16]} 35. Ref1 {[%clk 0:00:29]}  Nf4+ {[%clk 0:00:15]} 36. Kh2 {[%clk 0:00:21]}  Rh3+ {[%clk 0:00:13]} 37. Kg1 {[%clk 0:00:21]}  Rd3 {[%clk 0:00:12]} 38. Nf3 {[%clk 0:00:16]}  Rf5 {[%clk 0:00:05]} 39. Rh2 {[%clk 0:00:14]}  Bd8 {[%clk 0:00:03]} 40. Nxe5 {[%clk 0:00:12]}  Rxe5 {[%clk 0:00:02]} 41. Rxf4 {[%clk 0:00:13]}  Re7 {[%clk 0:00:02]} 42. Ng5+ {[%clk 0:00:12]}  Kg8 {[%clk 0:00:01]} 43. h7+ {[%clk 0:00:13]} 1-0


[Site "https://www.chess.com"]